{"text_format":"3","workbook":"xlsx","n_sheets":13,"sheets":["Ianuarie","Februarie","Martie","Aprilie","Mai","Iunie","Iulie","August","Septembrie","Octombrie","Noiembrie","Decembrie","Anul curent - Rezumat"],"not_rendered":{"charts":1,"defined_names":13},"read":"whole","date_system":"1900"}

{"sheet":"Ianuarie","index":0,"n_rows":9,"n_cols":14,"rows_kept":9,"merged":[[3,0,4,0],[6,0,7,0]]}
["IANUARIE"]
["Vânzări online",null,"ID\nlicitaţie","Descriere\nelement","Preţ de achiziţie","Preţ de vânzare","Comisioane online","Comisioane\nPayPal","Comisioane\ncarte de credit","Tarife\nlivrare","Comisioane\nlivrare","Vânzare - profit/pierderi","Livrare - profit/pierderi","Total - profit/pierderi"]
["An",null,"TS001","Element 1",{"v":5,"d":"5.00 lei"},{"v":4,"d":"4.00 lei"},{"v":2,"d":"2.00 lei"},{"v":1.5,"d":"1.50 lei"},{"v":0,"d":"0.00 lei"},{"v":4,"d":"4.00 lei"},{"v":2,"d":"2.00 lei"},{"$f":"IFERROR(VânzăriIanuarie[Preţ de vânzare]-(VânzăriIanuarie[Preţ de achiziţie]+VânzăriIanuarie[Comisioane online]+VânzăriIanuarie[Comisioane\nPayPal]+VânzăriIanuarie[Comisioane\ncarte de credit]),\"\")","v":{"v":-4.5,"d":"-4.50 lei"}},{"$f":"VânzăriIanuarie[Tarife\nlivrare]-VânzăriIanuarie[Comisioane\nlivrare]","v":{"v":2,"d":"2.00 lei"}},{"$f":"VânzăriIanuarie[Vânzare - profit/pierderi]+VânzăriIanuarie[Livrare - profit/pierderi]","v":{"v":-2.5,"d":"-2.50 lei"}}]
[2012,null,"TP004","Element 2",{"v":2,"d":"2.00 lei"},{"v":30,"d":"30.00 lei"},{"v":0.5,"d":"0.50 lei"},{"v":0.5,"d":"0.50 lei"},null,{"v":4,"d":"4.00 lei"},{"v":5.5,"d":"5.50 lei"},{"$f":"IFERROR(VânzăriIanuarie[Preţ de vânzare]-(VânzăriIanuarie[Preţ de achiziţie]+VânzăriIanuarie[Comisioane online]+VânzăriIanuarie[Comisioane\nPayPal]+VânzăriIanuarie[Comisioane\ncarte de credit]),\"\")","v":{"v":27,"d":"27.00 lei"}},{"$f":"VânzăriIanuarie[Tarife\nlivrare]-VânzăriIanuarie[Comisioane\nlivrare]","v":{"v":-1.5,"d":"-1.50 lei"}},{"$f":"VânzăriIanuarie[Vânzare - profit/pierderi]+VânzăriIanuarie[Livrare - profit/pierderi]","v":{"v":25.5,"d":"25.50 lei"}}]
[null,null,"RS99","Element 3",{"v":17,"d":"17.00 lei"},{"v":23,"d":"23.00 lei"},{"v":2,"d":"2.00 lei"},null,{"v":2,"d":"2.00 lei"},{"v":3,"d":"3.00 lei"},{"v":2,"d":"2.00 lei"},{"$f":"IFERROR(VânzăriIanuarie[Preţ de vânzare]-(VânzăriIanuarie[Preţ de achiziţie]+VânzăriIanuarie[Comisioane online]+VânzăriIanuarie[Comisioane\nPayPal]+VânzăriIanuarie[Comisioane\ncarte de credit]),\"\")","v":{"v":2,"d":"2.00 lei"}},{"$f":"VânzăriIanuarie[Tarife\nlivrare]-VânzăriIanuarie[Comisioane\nlivrare]","v":{"v":1,"d":"1.00 lei"}},{"$f":"VânzăriIanuarie[Vânzare - profit/pierderi]+VânzăriIanuarie[Livrare - profit/pierderi]","v":{"v":3,"d":"3.00 lei"}}]
["Total Profit/pierderi",null,"ST001","Element 4",{"v":120,"d":"120.00 lei"},{"v":180,"d":"180.00 lei"},{"v":2,"d":"2.00 lei"},{"v":1.5,"d":"1.50 lei"},null,{"v":3,"d":"3.00 lei"},{"v":2,"d":"2.00 lei"},{"$f":"IFERROR(VânzăriIanuarie[Preţ de vânzare]-(VânzăriIanuarie[Preţ de achiziţie]+VânzăriIanuarie[Comisioane online]+VânzăriIanuarie[Comisioane\nPayPal]+VânzăriIanuarie[Comisioane\ncarte de credit]),\"\")","v":{"v":56.5,"d":"56.50 lei"}},{"$f":"VânzăriIanuarie[Tarife\nlivrare]-VânzăriIanuarie[Comisioane\nlivrare]","v":{"v":1,"d":"1.00 lei"}},{"$f":"VânzăriIanuarie[Vânzare - profit/pierderi]+VânzăriIanuarie[Livrare - profit/pierderi]","v":{"v":57.5,"d":"57.50 lei"}}]
[{"$f":"VânzăriIanuarie[[#Totals],[Total - profit/pierderi]]","v":{"v":89,"d":"89.00 lei"}},null,"ST001","Element 5",{"v":10,"d":"10.00 lei"},{"v":12,"d":"12.00 lei"},{"v":2,"d":"2.00 lei"},{"v":1.5,"d":"1.50 lei"},null,{"v":14,"d":"14.00 lei"},{"v":7,"d":"7.00 lei"},{"$f":"IFERROR(VânzăriIanuarie[Preţ de vânzare]-(VânzăriIanuarie[Preţ de achiziţie]+VânzăriIanuarie[Comisioane online]+VânzăriIanuarie[Comisioane\nPayPal]+VânzăriIanuarie[Comisioane\ncarte de credit]),\"\")","v":{"v":-1.5,"d":"-1.50 lei"}},{"$f":"VânzăriIanuarie[Tarife\nlivrare]-VânzăriIanuarie[Comisioane\nlivrare]","v":{"v":7,"d":"7.00 lei"}},{"$f":"VânzăriIanuarie[Vânzare - profit/pierderi]+VânzăriIanuarie[Livrare - profit/pierderi]","v":{"v":5.5,"d":"5.50 lei"}}]
[null,null,"Total",{"$f":"\"Articole vândute: \"&SUBTOTAL(103,VânzăriIanuarie[Descriere\nelement])","v":"Articole vândute: 5"},{"$f":"SUBTOTAL(109,VânzăriIanuarie[Preţ de achiziţie])","v":{"v":154,"d":"154.00 lei"}},{"$f":"SUBTOTAL(109,VânzăriIanuarie[Preţ de vânzare])","v":{"v":249,"d":"249.00 lei"}},{"$f":"SUBTOTAL(109,VânzăriIanuarie[Comisioane online])","v":{"v":8.5,"d":"8.50 lei"}},{"$f":"SUBTOTAL(109,VânzăriIanuarie[Comisioane\nPayPal])","v":{"v":5,"d":"5.00 lei"}},{"$f":"SUBTOTAL(109,VânzăriIanuarie[Comisioane\ncarte de credit])","v":{"v":2,"d":"2.00 lei"}},{"$f":"SUBTOTAL(109,VânzăriIanuarie[Tarife\nlivrare])","v":{"v":28,"d":"28.00 lei"}},{"$f":"SUBTOTAL(109,VânzăriIanuarie[Comisioane\nlivrare])","v":{"v":18.5,"d":"18.50 lei"}},{"$f":"SUBTOTAL(109,VânzăriIanuarie[Vânzare - profit/pierderi])","v":{"v":79.5,"d":"79.50 lei"}},{"$f":"SUBTOTAL(109,VânzăriIanuarie[Livrare - profit/pierderi])","v":{"v":9.5,"d":"9.50 lei"}},{"$f":"SUBTOTAL(109,VânzăriIanuarie[Total - profit/pierderi])","v":{"v":89,"d":"89.00 lei"}}]
["Tendinţă Profit/Pierdere"]

{"sheet":"Februarie","index":1,"n_rows":9,"n_cols":14,"rows_kept":9,"merged":[[3,0,4,0],[6,0,7,0]]}
["FEBRUARIE"]
["Vânzări online",null,"ID\nlicitaţie","Descriere\nelement","Preţ de achiziţie","Preţ de vânzare","Comisioane online","Comisioane\nPayPal","Comisioane\ncarte de credit","Tarife\nlivrare","Comisioane\nlivrare","Vânzare - profit/pierderi","Livrare - profit/pierderi","Total - profit/pierderi"]
["An",null,"TS020","Element 1",{"v":10,"d":"10.00 lei"},{"v":175,"d":"175.00 lei"},{"v":3,"d":"3.00 lei"},{"v":1.5,"d":"1.50 lei"},{"v":0,"d":"0.00 lei"},{"v":7,"d":"7.00 lei"},{"v":5,"d":"5.00 lei"},{"$f":"IFERROR(VânzăriFebruarie[Preţ de vânzare]-(VânzăriFebruarie[Preţ de achiziţie]+VânzăriFebruarie[Comisioane online]+VânzăriFebruarie[Comisioane\nPayPal]+VânzăriFebruarie[Comisioane\ncarte de credit]),\"\")","v":{"v":160.5,"d":"160.50 lei"}},{"$f":"VânzăriFebruarie[Tarife\nlivrare]-VânzăriFebruarie[Comisioane\nlivrare]","v":{"v":2,"d":"2.00 lei"}},{"$f":"VânzăriFebruarie[Vânzare - profit/pierderi]+VânzăriFebruarie[Livrare - profit/pierderi]","v":{"v":162.5,"d":"162.50 lei"}}]
[{"$f":"AnVânzări","v":2012},null,"TS021","Element 2",{"v":32,"d":"32.00 lei"},{"v":100,"d":"100.00 lei"},{"v":3,"d":"3.00 lei"},null,{"v":3.2,"d":"3.20 lei"},{"v":20,"d":"20.00 lei"},{"v":13,"d":"13.00 lei"},{"$f":"IFERROR(VânzăriFebruarie[Preţ de vânzare]-(VânzăriFebruarie[Preţ de achiziţie]+VânzăriFebruarie[Comisioane online]+VânzăriFebruarie[Comisioane\nPayPal]+VânzăriFebruarie[Comisioane\ncarte de credit]),\"\")","v":{"v":61.8,"d":"61.80 lei"}},{"$f":"VânzăriFebruarie[Tarife\nlivrare]-VânzăriFebruarie[Comisioane\nlivrare]","v":{"v":7,"d":"7.00 lei"}},{"$f":"VânzăriFebruarie[Vânzare - profit/pierderi]+VânzăriFebruarie[Livrare - profit/pierderi]","v":{"v":68.8,"d":"68.80 lei"}}]
[null,null,"TS022","Element 3",{"v":3,"d":"3.00 lei"},{"v":7,"d":"7.00 lei"},{"v":2,"d":"2.00 lei"},null,{"v":2,"d":"2.00 lei"},{"v":0.5,"d":"0.50 lei"},{"v":1.2,"d":"1.20 lei"},{"$f":"IFERROR(VânzăriFebruarie[Preţ de vânzare]-(VânzăriFebruarie[Preţ de achiziţie]+VânzăriFebruarie[Comisioane online]+VânzăriFebruarie[Comisioane\nPayPal]+VânzăriFebruarie[Comisioane\ncarte de credit]),\"\")","v":{"v":0,"d":"0.00 lei"}},{"$f":"VânzăriFebruarie[Tarife\nlivrare]-VânzăriFebruarie[Comisioane\nlivrare]","v":{"v":-0.7,"d":"-0.70 lei"}},{"$f":"VânzăriFebruarie[Vânzare - profit/pierderi]+VânzăriFebruarie[Livrare - profit/pierderi]","v":{"v":-0.7,"d":"-0.70 lei"}}]
["Total Profit/pierderi",null,"TS023","Element 4",{"v":22,"d":"22.00 lei"},{"v":18,"d":"18.00 lei"},{"v":3,"d":"3.00 lei"},{"v":1.5,"d":"1.50 lei"},null,{"v":7,"d":"7.00 lei"},{"v":10,"d":"10.00 lei"},{"$f":"IFERROR(VânzăriFebruarie[Preţ de vânzare]-(VânzăriFebruarie[Preţ de achiziţie]+VânzăriFebruarie[Comisioane online]+VânzăriFebruarie[Comisioane\nPayPal]+VânzăriFebruarie[Comisioane\ncarte de credit]),\"\")","v":{"v":-8.5,"d":"-8.50 lei"}},{"$f":"VânzăriFebruarie[Tarife\nlivrare]-VânzăriFebruarie[Comisioane\nlivrare]","v":{"v":-3,"d":"-3.00 lei"}},{"$f":"VânzăriFebruarie[Vânzare - profit/pierderi]+VânzăriFebruarie[Livrare - profit/pierderi]","v":{"v":-11.5,"d":"-11.50 lei"}}]
[{"$f":"VânzăriFebruarie[[#Totals],[Total - profit/pierderi]]","v":{"v":224.60000000000002,"d":"224.60 lei"}},null,"TS024","Element 5",{"v":10,"d":"10.00 lei"},{"v":12,"d":"12.00 lei"},{"v":2,"d":"2.00 lei"},{"v":1.5,"d":"1.50 lei"},null,{"v":14,"d":"14.00 lei"},{"v":7,"d":"7.00 lei"},{"$f":"IFERROR(VânzăriFebruarie[Preţ de vânzare]-(VânzăriFebruarie[Preţ de achiziţie]+VânzăriFebruarie[Comisioane online]+VânzăriFebruarie[Comisioane\nPayPal]+VânzăriFebruarie[Comisioane\ncarte de credit]),\"\")","v":{"v":-1.5,"d":"-1.50 lei"}},{"$f":"VânzăriFebruarie[Tarife\nlivrare]-VânzăriFebruarie[Comisioane\nlivrare]","v":{"v":7,"d":"7.00 lei"}},{"$f":"VânzăriFebruarie[Vânzare - profit/pierderi]+VânzăriFebruarie[Livrare - profit/pierderi]","v":{"v":5.5,"d":"5.50 lei"}}]
[null,null,"Total",{"$f":"\"Articole vândute: \"&SUBTOTAL(103,VânzăriFebruarie[Descriere\nelement])","v":"Articole vândute: 5"},{"$f":"SUBTOTAL(109,VânzăriFebruarie[Preţ de achiziţie])","v":{"v":77,"d":"77.00 lei"}},{"$f":"SUBTOTAL(109,VânzăriFebruarie[Preţ de vânzare])","v":{"v":312,"d":"312.00 lei"}},{"$f":"SUBTOTAL(109,VânzăriFebruarie[Comisioane online])","v":{"v":13,"d":"13.00 lei"}},{"$f":"SUBTOTAL(109,VânzăriFebruarie[Comisioane\nPayPal])","v":{"v":4.5,"d":"4.50 lei"}},{"$f":"SUBTOTAL(109,VânzăriFebruarie[Comisioane\ncarte de credit])","v":{"v":5.2,"d":"5.20 lei"}},{"$f":"SUBTOTAL(109,VânzăriFebruarie[Tarife\nlivrare])","v":{"v":48.5,"d":"48.50 lei"}},{"$f":"SUBTOTAL(109,VânzăriFebruarie[Comisioane\nlivrare])","v":{"v":36.2,"d":"36.20 lei"}},{"$f":"SUBTOTAL(109,VânzăriFebruarie[Vânzare - profit/pierderi])","v":{"v":212.3,"d":"212.30 lei"}},{"$f":"SUBTOTAL(109,VânzăriFebruarie[Livrare - profit/pierderi])","v":{"v":12.3,"d":"12.30 lei"}},{"$f":"SUBTOTAL(109,VânzăriFebruarie[Total - profit/pierderi])","v":{"v":224.60000000000002,"d":"224.60 lei"}}]
["Tendinţă Profit/Pierdere"]

{"sheet":"Martie","index":2,"n_rows":9,"n_cols":14,"rows_kept":9,"merged":[[3,0,4,0],[6,0,7,0]]}
["MARTIE"]
["Vânzări online",null,"ID\nlicitaţie","Descriere\nelement","Preţ de achiziţie","Preţ de vânzare","Comisioane online","Comisioane\nPayPal","Comisioane\ncarte de credit","Tarife\nlivrare","Comisioane\nlivrare","Vânzare - profit/pierderi","Livrare - profit/pierderi","Total - profit/pierderi"]
["An",{"$nulls":10},{"$f":"IFERROR(VânzăriMartie[Preţ de vânzare]-(VânzăriMartie[Preţ de achiziţie]+VânzăriMartie[Comisioane online]+VânzăriMartie[Comisioane\nPayPal]+VânzăriMartie[Comisioane\ncarte de credit]),\"\")","v":{"v":0,"d":"0.00 lei"}},{"$f":"VânzăriMartie[Tarife\nlivrare]-VânzăriMartie[Comisioane\nlivrare]","v":{"v":0,"d":"0.00 lei"}},{"$f":"VânzăriMartie[Vânzare - profit/pierderi]+VânzăriMartie[Livrare - profit/pierderi]","v":{"v":0,"d":"0.00 lei"}}]
[{"$f":"AnVânzări","v":2012},{"$nulls":10},{"$f":"IFERROR(VânzăriMartie[Preţ de vânzare]-(VânzăriMartie[Preţ de achiziţie]+VânzăriMartie[Comisioane online]+VânzăriMartie[Comisioane\nPayPal]+VânzăriMartie[Comisioane\ncarte de credit]),\"\")","v":{"v":0,"d":"0.00 lei"}},{"$f":"VânzăriMartie[Tarife\nlivrare]-VânzăriMartie[Comisioane\nlivrare]","v":{"v":0,"d":"0.00 lei"}},{"$f":"VânzăriMartie[Vânzare - profit/pierderi]+VânzăriMartie[Livrare - profit/pierderi]","v":{"v":0,"d":"0.00 lei"}}]
[{"$nulls":11},{"$f":"IFERROR(VânzăriMartie[Preţ de vânzare]-(VânzăriMartie[Preţ de achiziţie]+VânzăriMartie[Comisioane online]+VânzăriMartie[Comisioane\nPayPal]+VânzăriMartie[Comisioane\ncarte de credit]),\"\")","v":{"v":0,"d":"0.00 lei"}},{"$f":"VânzăriMartie[Tarife\nlivrare]-VânzăriMartie[Comisioane\nlivrare]","v":{"v":0,"d":"0.00 lei"}},{"$f":"VânzăriMartie[Vânzare - profit/pierderi]+VânzăriMartie[Livrare - profit/pierderi]","v":{"v":0,"d":"0.00 lei"}}]
["Total Profit/pierderi",{"$nulls":10},{"$f":"IFERROR(VânzăriMartie[Preţ de vânzare]-(VânzăriMartie[Preţ de achiziţie]+VânzăriMartie[Comisioane online]+VânzăriMartie[Comisioane\nPayPal]+VânzăriMartie[Comisioane\ncarte de credit]),\"\")","v":{"v":0,"d":"0.00 lei"}},{"$f":"VânzăriMartie[Tarife\nlivrare]-VânzăriMartie[Comisioane\nlivrare]","v":{"v":0,"d":"0.00 lei"}},{"$f":"VânzăriMartie[Vânzare - profit/pierderi]+VânzăriMartie[Livrare - profit/pierderi]","v":{"v":0,"d":"0.00 lei"}}]
[{"$f":"VânzăriMartie[[#Totals],[Total - profit/pierderi]]","v":{"v":0,"d":"0.00 lei"}},{"$nulls":10},{"$f":"IFERROR(VânzăriMartie[Preţ de vânzare]-(VânzăriMartie[Preţ de achiziţie]+VânzăriMartie[Comisioane online]+VânzăriMartie[Comisioane\nPayPal]+VânzăriMartie[Comisioane\ncarte de credit]),\"\")","v":{"v":0,"d":"0.00 lei"}},{"$f":"VânzăriMartie[Tarife\nlivrare]-VânzăriMartie[Comisioane\nlivrare]","v":{"v":0,"d":"0.00 lei"}},{"$f":"VânzăriMartie[Vânzare - profit/pierderi]+VânzăriMartie[Livrare - profit/pierderi]","v":{"v":0,"d":"0.00 lei"}}]
[null,null,"Total",{"$f":"\"Articole vândute: \"&SUBTOTAL(103,VânzăriMartie[Descriere\nelement])","v":"Articole vândute: 0"},{"$f":"SUBTOTAL(109,VânzăriMartie[Preţ de achiziţie])","v":{"v":0,"d":"0.00 lei"}},{"$f":"SUBTOTAL(109,VânzăriMartie[Preţ de vânzare])","v":{"v":0,"d":"0.00 lei"}},{"$f":"SUBTOTAL(109,VânzăriMartie[Comisioane online])","v":{"v":0,"d":"0.00 lei"}},{"$f":"SUBTOTAL(109,VânzăriMartie[Comisioane\nPayPal])","v":{"v":0,"d":"0.00 lei"}},{"$f":"SUBTOTAL(109,VânzăriMartie[Comisioane\ncarte de credit])","v":{"v":0,"d":"0.00 lei"}},{"$f":"SUBTOTAL(109,VânzăriMartie[Tarife\nlivrare])","v":{"v":0,"d":"0.00 lei"}},{"$f":"SUBTOTAL(109,VânzăriMartie[Comisioane\nlivrare])","v":{"v":0,"d":"0.00 lei"}},{"$f":"SUBTOTAL(109,VânzăriMartie[Vânzare - profit/pierderi])","v":{"v":0,"d":"0.00 lei"}},{"$f":"SUBTOTAL(109,VânzăriMartie[Livrare - profit/pierderi])","v":{"v":0,"d":"0.00 lei"}},{"$f":"SUBTOTAL(109,VânzăriMartie[Total - profit/pierderi])","v":{"v":0,"d":"0.00 lei"}}]
["Tendinţă Profit/Pierdere"]

{"sheet":"Aprilie","index":3,"n_rows":9,"n_cols":14,"rows_kept":9,"merged":[[3,0,4,0],[6,0,7,0]]}
["APRILIE"]
["Vânzări online",null,"ID\nlicitaţie","Descriere\nelement","Preţ de achiziţie","Preţ de vânzare","Comisioane online","Comisioane\nPayPal","Comisioane\ncarte de credit","Tarife\nlivrare","Comisioane\nlivrare","Vânzare - profit/pierderi","Livrare - profit/pierderi","Total - profit/pierderi"]
["An",{"$nulls":11},{"$f":"VânzăriAprilie[Tarife\nlivrare]-VânzăriAprilie[Comisioane\nlivrare]","v":{"v":0,"d":"0.00 lei"}},{"$f":"VânzăriAprilie[Vânzare - profit/pierderi]+VânzăriAprilie[Livrare - profit/pierderi]","v":{"v":0,"d":"0.00 lei"}}]
[{"$f":"AnVânzări","v":2012},{"$nulls":11},{"$f":"VânzăriAprilie[Tarife\nlivrare]-VânzăriAprilie[Comisioane\nlivrare]","v":{"v":0,"d":"0.00 lei"}},{"$f":"VânzăriAprilie[Vânzare - profit/pierderi]+VânzăriAprilie[Livrare - profit/pierderi]","v":{"v":0,"d":"0.00 lei"}}]
[{"$nulls":12},{"$f":"VânzăriAprilie[Tarife\nlivrare]-VânzăriAprilie[Comisioane\nlivrare]","v":{"v":0,"d":"0.00 lei"}},{"$f":"VânzăriAprilie[Vânzare - profit/pierderi]+VânzăriAprilie[Livrare - profit/pierderi]","v":{"v":0,"d":"0.00 lei"}}]
["Total Profit/pierderi",{"$nulls":11},{"$f":"VânzăriAprilie[Tarife\nlivrare]-VânzăriAprilie[Comisioane\nlivrare]","v":{"v":0,"d":"0.00 lei"}},{"$f":"VânzăriAprilie[Vânzare - profit/pierderi]+VânzăriAprilie[Livrare - profit/pierderi]","v":{"v":0,"d":"0.00 lei"}}]
[{"$f":"VânzăriAprilie[[#Totals],[Total - profit/pierderi]]","v":{"v":0,"d":"0.00 lei"}},{"$nulls":11},{"$f":"VânzăriAprilie[Tarife\nlivrare]-VânzăriAprilie[Comisioane\nlivrare]","v":{"v":0,"d":"0.00 lei"}},{"$f":"VânzăriAprilie[Vânzare - profit/pierderi]+VânzăriAprilie[Livrare - profit/pierderi]","v":{"v":0,"d":"0.00 lei"}}]
[null,null,"Total",{"$f":"\"Articole vândute: \"&SUBTOTAL(103,VânzăriAprilie[Descriere\nelement])","v":"Articole vândute: 0"},{"$f":"SUBTOTAL(109,VânzăriAprilie[Preţ de achiziţie])","v":{"v":0,"d":"0.00 lei"}},{"$f":"SUBTOTAL(109,VânzăriAprilie[Preţ de vânzare])","v":{"v":0,"d":"0.00 lei"}},{"$f":"SUBTOTAL(109,VânzăriAprilie[Comisioane online])","v":{"v":0,"d":"0.00 lei"}},{"$f":"SUBTOTAL(109,VânzăriAprilie[Comisioane\nPayPal])","v":{"v":0,"d":"0.00 lei"}},{"$f":"SUBTOTAL(109,VânzăriAprilie[Comisioane\ncarte de credit])","v":{"v":0,"d":"0.00 lei"}},{"$f":"SUBTOTAL(109,VânzăriAprilie[Tarife\nlivrare])","v":{"v":0,"d":"0.00 lei"}},{"$f":"SUBTOTAL(109,VânzăriAprilie[Comisioane\nlivrare])","v":{"v":0,"d":"0.00 lei"}},{"$f":"SUBTOTAL(109,VânzăriAprilie[Vânzare - profit/pierderi])","v":{"v":0,"d":"0.00 lei"}},{"$f":"SUBTOTAL(109,VânzăriAprilie[Livrare - profit/pierderi])","v":{"v":0,"d":"0.00 lei"}},{"$f":"SUBTOTAL(109,VânzăriAprilie[Total - profit/pierderi])","v":{"v":0,"d":"0.00 lei"}}]
["Tendinţă Profit/Pierdere"]

{"sheet":"Mai","index":4,"n_rows":9,"n_cols":14,"rows_kept":9,"merged":[[3,0,4,0],[6,0,7,0]]}
["MAI"]
["Vânzări online",null,"ID\nlicitaţie","Descriere\nelement","Preţ de achiziţie","Preţ de vânzare","Comisioane online","Comisioane\nPayPal","Comisioane\ncarte de credit","Tarife\nlivrare","Comisioane\nlivrare","Vânzare - profit/pierderi","Livrare - profit/pierderi","Total - profit/pierderi"]
["An",{"$nulls":11},{"$f":"VânzăriMai[Tarife\nlivrare]-VânzăriMai[Comisioane\nlivrare]","v":{"v":0,"d":"0.00 lei"}},{"$f":"VânzăriMai[Vânzare - profit/pierderi]+VânzăriMai[Livrare - profit/pierderi]","v":{"v":0,"d":"0.00 lei"}}]
[{"$f":"AnVânzări","v":2012},{"$nulls":11},{"$f":"VânzăriMai[Tarife\nlivrare]-VânzăriMai[Comisioane\nlivrare]","v":{"v":0,"d":"0.00 lei"}},{"$f":"VânzăriMai[Vânzare - profit/pierderi]+VânzăriMai[Livrare - profit/pierderi]","v":{"v":0,"d":"0.00 lei"}}]
[{"$nulls":12},{"$f":"VânzăriMai[Tarife\nlivrare]-VânzăriMai[Comisioane\nlivrare]","v":{"v":0,"d":"0.00 lei"}},{"$f":"VânzăriMai[Vânzare - profit/pierderi]+VânzăriMai[Livrare - profit/pierderi]","v":{"v":0,"d":"0.00 lei"}}]
["Total Profit/pierderi",{"$nulls":11},{"$f":"VânzăriMai[Tarife\nlivrare]-VânzăriMai[Comisioane\nlivrare]","v":{"v":0,"d":"0.00 lei"}},{"$f":"VânzăriMai[Vânzare - profit/pierderi]+VânzăriMai[Livrare - profit/pierderi]","v":{"v":0,"d":"0.00 lei"}}]
[{"$f":"VânzăriMai[[#Totals],[Total - profit/pierderi]]","v":{"v":0,"d":"0.00 lei"}},{"$nulls":11},{"$f":"VânzăriMai[Tarife\nlivrare]-VânzăriMai[Comisioane\nlivrare]","v":{"v":0,"d":"0.00 lei"}},{"$f":"VânzăriMai[Vânzare - profit/pierderi]+VânzăriMai[Livrare - profit/pierderi]","v":{"v":0,"d":"0.00 lei"}}]
[null,null,"Total",{"$f":"\"Articole vândute: \"&SUBTOTAL(103,VânzăriMai[Descriere\nelement])","v":"Articole vândute: 0"},{"$f":"SUBTOTAL(109,VânzăriMai[Preţ de achiziţie])","v":{"v":0,"d":"0.00 lei"}},{"$f":"SUBTOTAL(109,VânzăriMai[Preţ de vânzare])","v":{"v":0,"d":"0.00 lei"}},{"$f":"SUBTOTAL(109,VânzăriMai[Comisioane online])","v":{"v":0,"d":"0.00 lei"}},{"$f":"SUBTOTAL(109,VânzăriMai[Comisioane\nPayPal])","v":{"v":0,"d":"0.00 lei"}},{"$f":"SUBTOTAL(109,VânzăriMai[Comisioane\ncarte de credit])","v":{"v":0,"d":"0.00 lei"}},{"$f":"SUBTOTAL(109,VânzăriMai[Tarife\nlivrare])","v":{"v":0,"d":"0.00 lei"}},{"$f":"SUBTOTAL(109,VânzăriMai[Comisioane\nlivrare])","v":{"v":0,"d":"0.00 lei"}},{"$f":"SUBTOTAL(109,VânzăriMai[Vânzare - profit/pierderi])","v":{"v":0,"d":"0.00 lei"}},{"$f":"SUBTOTAL(109,VânzăriMai[Livrare - profit/pierderi])","v":{"v":0,"d":"0.00 lei"}},{"$f":"SUBTOTAL(109,VânzăriMai[Total - profit/pierderi])","v":{"v":0,"d":"0.00 lei"}}]
["Tendinţă Profit/Pierdere"]

{"sheet":"Iunie","index":5,"n_rows":9,"n_cols":14,"rows_kept":9,"merged":[[3,0,4,0],[6,0,7,0]]}
["IUNIE"]
["Vânzări online",null,"ID\nlicitaţie","Descriere\nelement","Preţ de achiziţie","Preţ de vânzare","Comisioane online","Comisioane\nPayPal","Comisioane\ncarte de credit","Tarife\nlivrare","Comisioane\nlivrare","Vânzare - profit/pierderi","Livrare - profit/pierderi","Total - profit/pierderi"]
["An",{"$nulls":11},{"$f":"VânzăriIunie[Tarife\nlivrare]-VânzăriIunie[Comisioane\nlivrare]","v":{"v":0,"d":"0.00 lei"}},{"$f":"VânzăriIunie[Vânzare - profit/pierderi]+VânzăriIunie[Livrare - profit/pierderi]","v":{"v":0,"d":"0.00 lei"}}]
[{"$f":"AnVânzări","v":2012},{"$nulls":11},{"$f":"VânzăriIunie[Tarife\nlivrare]-VânzăriIunie[Comisioane\nlivrare]","v":{"v":0,"d":"0.00 lei"}},{"$f":"VânzăriIunie[Vânzare - profit/pierderi]+VânzăriIunie[Livrare - profit/pierderi]","v":{"v":0,"d":"0.00 lei"}}]
[{"$nulls":12},{"$f":"VânzăriIunie[Tarife\nlivrare]-VânzăriIunie[Comisioane\nlivrare]","v":{"v":0,"d":"0.00 lei"}},{"$f":"VânzăriIunie[Vânzare - profit/pierderi]+VânzăriIunie[Livrare - profit/pierderi]","v":{"v":0,"d":"0.00 lei"}}]
["Total Profit/pierderi",{"$nulls":11},{"$f":"VânzăriIunie[Tarife\nlivrare]-VânzăriIunie[Comisioane\nlivrare]","v":{"v":0,"d":"0.00 lei"}},{"$f":"VânzăriIunie[Vânzare - profit/pierderi]+VânzăriIunie[Livrare - profit/pierderi]","v":{"v":0,"d":"0.00 lei"}}]
[{"$f":"VânzăriIunie[[#Totals],[Total - profit/pierderi]]","v":{"v":0,"d":"0.00 lei"}},{"$nulls":11},{"$f":"VânzăriIunie[Tarife\nlivrare]-VânzăriIunie[Comisioane\nlivrare]","v":{"v":0,"d":"0.00 lei"}},{"$f":"VânzăriIunie[Vânzare - profit/pierderi]+VânzăriIunie[Livrare - profit/pierderi]","v":{"v":0,"d":"0.00 lei"}}]
[null,null,"Total",{"$f":"\"Articole vândute: \"&SUBTOTAL(103,VânzăriIunie[Descriere\nelement])","v":"Articole vândute: 0"},{"$f":"SUBTOTAL(109,VânzăriIunie[Preţ de achiziţie])","v":{"v":0,"d":"0.00 lei"}},{"$f":"SUBTOTAL(109,VânzăriIunie[Preţ de vânzare])","v":{"v":0,"d":"0.00 lei"}},{"$f":"SUBTOTAL(109,VânzăriIunie[Comisioane online])","v":{"v":0,"d":"0.00 lei"}},{"$f":"SUBTOTAL(109,VânzăriIunie[Comisioane\nPayPal])","v":{"v":0,"d":"0.00 lei"}},{"$f":"SUBTOTAL(109,VânzăriIunie[Comisioane\ncarte de credit])","v":{"v":0,"d":"0.00 lei"}},{"$f":"SUBTOTAL(109,VânzăriIunie[Tarife\nlivrare])","v":{"v":0,"d":"0.00 lei"}},{"$f":"SUBTOTAL(109,VânzăriIunie[Comisioane\nlivrare])","v":{"v":0,"d":"0.00 lei"}},{"$f":"SUBTOTAL(109,VânzăriIunie[Vânzare - profit/pierderi])","v":{"v":0,"d":"0.00 lei"}},{"$f":"SUBTOTAL(109,VânzăriIunie[Livrare - profit/pierderi])","v":{"v":0,"d":"0.00 lei"}},{"$f":"SUBTOTAL(109,VânzăriIunie[Total - profit/pierderi])","v":{"v":0,"d":"0.00 lei"}}]
["Tendinţă Profit/Pierdere"]

{"sheet":"Iulie","index":6,"n_rows":9,"n_cols":14,"rows_kept":9,"merged":[[3,0,4,0],[6,0,7,0]]}
["IULIE"]
["Vânzări online",null,"ID\nlicitaţie","Descriere\nelement","Preţ de achiziţie","Preţ de vânzare","Comisioane online","Comisioane\nPayPal","Comisioane\ncarte de credit","Tarife\nlivrare","Comisioane\nlivrare","Vânzare - profit/pierderi","Livrare - profit/pierderi","Total - profit/pierderi"]
["An",{"$nulls":11},{"$f":"VânzăriIulie[Tarife\nlivrare]-VânzăriIulie[Comisioane\nlivrare]","v":{"v":0,"d":"0.00 lei"}},{"$f":"VânzăriIulie[Vânzare - profit/pierderi]+VânzăriIulie[Livrare - profit/pierderi]","v":{"v":0,"d":"0.00 lei"}}]
[{"$f":"AnVânzări","v":2012},{"$nulls":11},{"$f":"VânzăriIulie[Tarife\nlivrare]-VânzăriIulie[Comisioane\nlivrare]","v":{"v":0,"d":"0.00 lei"}},{"$f":"VânzăriIulie[Vânzare - profit/pierderi]+VânzăriIulie[Livrare - profit/pierderi]","v":{"v":0,"d":"0.00 lei"}}]
[{"$nulls":12},{"$f":"VânzăriIulie[Tarife\nlivrare]-VânzăriIulie[Comisioane\nlivrare]","v":{"v":0,"d":"0.00 lei"}},{"$f":"VânzăriIulie[Vânzare - profit/pierderi]+VânzăriIulie[Livrare - profit/pierderi]","v":{"v":0,"d":"0.00 lei"}}]
["Total Profit/pierderi",{"$nulls":11},{"$f":"VânzăriIulie[Tarife\nlivrare]-VânzăriIulie[Comisioane\nlivrare]","v":{"v":0,"d":"0.00 lei"}},{"$f":"VânzăriIulie[Vânzare - profit/pierderi]+VânzăriIulie[Livrare - profit/pierderi]","v":{"v":0,"d":"0.00 lei"}}]
[{"$f":"VânzăriIulie[[#Totals],[Total - profit/pierderi]]","v":{"v":0,"d":"0.00 lei"}},{"$nulls":11},{"$f":"VânzăriIulie[Tarife\nlivrare]-VânzăriIulie[Comisioane\nlivrare]","v":{"v":0,"d":"0.00 lei"}},{"$f":"VânzăriIulie[Vânzare - profit/pierderi]+VânzăriIulie[Livrare - profit/pierderi]","v":{"v":0,"d":"0.00 lei"}}]
[null,null,"Total",{"$f":"\"Articole vândute: \"&SUBTOTAL(103,VânzăriIulie[Descriere\nelement])","v":"Articole vândute: 0"},{"$f":"SUBTOTAL(109,VânzăriIulie[Preţ de achiziţie])","v":{"v":0,"d":"0.00 lei"}},{"$f":"SUBTOTAL(109,VânzăriIulie[Preţ de vânzare])","v":{"v":0,"d":"0.00 lei"}},{"$f":"SUBTOTAL(109,VânzăriIulie[Comisioane online])","v":{"v":0,"d":"0.00 lei"}},{"$f":"SUBTOTAL(109,VânzăriIulie[Comisioane\nPayPal])","v":{"v":0,"d":"0.00 lei"}},{"$f":"SUBTOTAL(109,VânzăriIulie[Comisioane\ncarte de credit])","v":{"v":0,"d":"0.00 lei"}},{"$f":"SUBTOTAL(109,VânzăriIulie[Tarife\nlivrare])","v":{"v":0,"d":"0.00 lei"}},{"$f":"SUBTOTAL(109,VânzăriIulie[Comisioane\nlivrare])","v":{"v":0,"d":"0.00 lei"}},{"$f":"SUBTOTAL(109,VânzăriIulie[Vânzare - profit/pierderi])","v":{"v":0,"d":"0.00 lei"}},{"$f":"SUBTOTAL(109,VânzăriIulie[Livrare - profit/pierderi])","v":{"v":0,"d":"0.00 lei"}},{"$f":"SUBTOTAL(109,VânzăriIulie[Total - profit/pierderi])","v":{"v":0,"d":"0.00 lei"}}]
["Tendinţă Profit/Pierdere"]

{"sheet":"August","index":7,"n_rows":9,"n_cols":14,"rows_kept":9,"merged":[[3,0,4,0],[6,0,7,0]]}
["AUGUST"]
["Vânzări online",null,"ID\nlicitaţie","Descriere\nelement","Preţ de achiziţie","Preţ de vânzare","Comisioane online","Comisioane\nPayPal","Comisioane\ncarte de credit","Tarife\nlivrare","Comisioane\nlivrare","Vânzare - profit/pierderi","Livrare - profit/pierderi","Total - profit/pierderi"]
["An",{"$nulls":11},{"$f":"VânzăriAugust[Tarife\nlivrare]-VânzăriAugust[Comisioane\nlivrare]","v":{"v":0,"d":"0.00 lei"}},{"$f":"VânzăriAugust[Vânzare - profit/pierderi]+VânzăriAugust[Livrare - profit/pierderi]","v":{"v":0,"d":"0.00 lei"}}]
[{"$f":"AnVânzări","v":2012},{"$nulls":11},{"$f":"VânzăriAugust[Tarife\nlivrare]-VânzăriAugust[Comisioane\nlivrare]","v":{"v":0,"d":"0.00 lei"}},{"$f":"VânzăriAugust[Vânzare - profit/pierderi]+VânzăriAugust[Livrare - profit/pierderi]","v":{"v":0,"d":"0.00 lei"}}]
[{"$nulls":12},{"$f":"VânzăriAugust[Tarife\nlivrare]-VânzăriAugust[Comisioane\nlivrare]","v":{"v":0,"d":"0.00 lei"}},{"$f":"VânzăriAugust[Vânzare - profit/pierderi]+VânzăriAugust[Livrare - profit/pierderi]","v":{"v":0,"d":"0.00 lei"}}]
["Total Profit/pierderi",{"$nulls":11},{"$f":"VânzăriAugust[Tarife\nlivrare]-VânzăriAugust[Comisioane\nlivrare]","v":{"v":0,"d":"0.00 lei"}},{"$f":"VânzăriAugust[Vânzare - profit/pierderi]+VânzăriAugust[Livrare - profit/pierderi]","v":{"v":0,"d":"0.00 lei"}}]
[{"$f":"VânzăriAugust[[#Totals],[Total - profit/pierderi]]","v":{"v":0,"d":"0.00 lei"}},{"$nulls":11},{"$f":"VânzăriAugust[Tarife\nlivrare]-VânzăriAugust[Comisioane\nlivrare]","v":{"v":0,"d":"0.00 lei"}},{"$f":"VânzăriAugust[Vânzare - profit/pierderi]+VânzăriAugust[Livrare - profit/pierderi]","v":{"v":0,"d":"0.00 lei"}}]
[null,null,"Total",{"$f":"\"Articole vândute: \"&SUBTOTAL(103,VânzăriAugust[Descriere\nelement])","v":"Articole vândute: 0"},{"$f":"SUBTOTAL(109,VânzăriAugust[Preţ de achiziţie])","v":{"v":0,"d":"0.00 lei"}},{"$f":"SUBTOTAL(109,VânzăriAugust[Preţ de vânzare])","v":{"v":0,"d":"0.00 lei"}},{"$f":"SUBTOTAL(109,VânzăriAugust[Comisioane online])","v":{"v":0,"d":"0.00 lei"}},{"$f":"SUBTOTAL(109,VânzăriAugust[Comisioane\nPayPal])","v":{"v":0,"d":"0.00 lei"}},{"$f":"SUBTOTAL(109,VânzăriAugust[Comisioane\ncarte de credit])","v":{"v":0,"d":"0.00 lei"}},{"$f":"SUBTOTAL(109,VânzăriAugust[Tarife\nlivrare])","v":{"v":0,"d":"0.00 lei"}},{"$f":"SUBTOTAL(109,VânzăriAugust[Comisioane\nlivrare])","v":{"v":0,"d":"0.00 lei"}},{"$f":"SUBTOTAL(109,VânzăriAugust[Vânzare - profit/pierderi])","v":{"v":0,"d":"0.00 lei"}},{"$f":"SUBTOTAL(109,VânzăriAugust[Livrare - profit/pierderi])","v":{"v":0,"d":"0.00 lei"}},{"$f":"SUBTOTAL(109,VânzăriAugust[Total - profit/pierderi])","v":{"v":0,"d":"0.00 lei"}}]
["Tendinţă Profit/Pierdere"]

{"sheet":"Septembrie","index":8,"n_rows":9,"n_cols":14,"rows_kept":9,"merged":[[3,0,4,0],[6,0,7,0]]}
["SEPTEMBRIE"]
["Vânzări online",null,"ID\nlicitaţie","Descriere\nelement","Preţ de achiziţie","Preţ de vânzare","Comisioane online","Comisioane\nPayPal","Comisioane\ncarte de credit","Tarife\nlivrare","Comisioane\nlivrare","Vânzare - profit/pierderi","Livrare - profit/pierderi","Total - profit/pierderi"]
["An",{"$nulls":11},{"$f":"VânzăriSeptembrie[Tarife\nlivrare]-VânzăriSeptembrie[Comisioane\nlivrare]","v":{"v":0,"d":"0.00 lei"}},{"$f":"VânzăriSeptembrie[Vânzare - profit/pierderi]+VânzăriSeptembrie[Livrare - profit/pierderi]","v":{"v":0,"d":"0.00 lei"}}]
[{"$f":"AnVânzări","v":2012},{"$nulls":11},{"$f":"VânzăriSeptembrie[Tarife\nlivrare]-VânzăriSeptembrie[Comisioane\nlivrare]","v":{"v":0,"d":"0.00 lei"}},{"$f":"VânzăriSeptembrie[Vânzare - profit/pierderi]+VânzăriSeptembrie[Livrare - profit/pierderi]","v":{"v":0,"d":"0.00 lei"}}]
[{"$nulls":12},{"$f":"VânzăriSeptembrie[Tarife\nlivrare]-VânzăriSeptembrie[Comisioane\nlivrare]","v":{"v":0,"d":"0.00 lei"}},{"$f":"VânzăriSeptembrie[Vânzare - profit/pierderi]+VânzăriSeptembrie[Livrare - profit/pierderi]","v":{"v":0,"d":"0.00 lei"}}]
["Total Profit/pierderi",{"$nulls":11},{"$f":"VânzăriSeptembrie[Tarife\nlivrare]-VânzăriSeptembrie[Comisioane\nlivrare]","v":{"v":0,"d":"0.00 lei"}},{"$f":"VânzăriSeptembrie[Vânzare - profit/pierderi]+VânzăriSeptembrie[Livrare - profit/pierderi]","v":{"v":0,"d":"0.00 lei"}}]
[{"$f":"VânzăriSeptembrie[[#Totals],[Total - profit/pierderi]]","v":{"v":0,"d":"0.00 lei"}},{"$nulls":11},{"$f":"VânzăriSeptembrie[Tarife\nlivrare]-VânzăriSeptembrie[Comisioane\nlivrare]","v":{"v":0,"d":"0.00 lei"}},{"$f":"VânzăriSeptembrie[Vânzare - profit/pierderi]+VânzăriSeptembrie[Livrare - profit/pierderi]","v":{"v":0,"d":"0.00 lei"}}]
[null,null,"Total",{"$f":"\"Articole vândute: \"&SUBTOTAL(103,VânzăriSeptembrie[Descriere\nelement])","v":"Articole vândute: 0"},{"$f":"SUBTOTAL(109,VânzăriSeptembrie[Preţ de achiziţie])","v":{"v":0,"d":"0.00 lei"}},{"$f":"SUBTOTAL(109,VânzăriSeptembrie[Preţ de vânzare])","v":{"v":0,"d":"0.00 lei"}},{"$f":"SUBTOTAL(109,VânzăriSeptembrie[Comisioane online])","v":{"v":0,"d":"0.00 lei"}},{"$f":"SUBTOTAL(109,VânzăriSeptembrie[Comisioane\nPayPal])","v":{"v":0,"d":"0.00 lei"}},{"$f":"SUBTOTAL(109,VânzăriSeptembrie[Comisioane\ncarte de credit])","v":{"v":0,"d":"0.00 lei"}},{"$f":"SUBTOTAL(109,VânzăriSeptembrie[Tarife\nlivrare])","v":{"v":0,"d":"0.00 lei"}},{"$f":"SUBTOTAL(109,VânzăriSeptembrie[Comisioane\nlivrare])","v":{"v":0,"d":"0.00 lei"}},{"$f":"SUBTOTAL(109,VânzăriSeptembrie[Vânzare - profit/pierderi])","v":{"v":0,"d":"0.00 lei"}},{"$f":"SUBTOTAL(109,VânzăriSeptembrie[Livrare - profit/pierderi])","v":{"v":0,"d":"0.00 lei"}},{"$f":"SUBTOTAL(109,VânzăriSeptembrie[Total - profit/pierderi])","v":{"v":0,"d":"0.00 lei"}}]
["Tendinţă Profit/Pierdere"]

{"sheet":"Octombrie","index":9,"n_rows":9,"n_cols":14,"rows_kept":9,"merged":[[3,0,4,0],[6,0,7,0]]}
["OCTOMBRIE"]
["Vânzări online",null,"ID\nlicitaţie","Descriere\nelement","Preţ de achiziţie","Preţ de vânzare","Comisioane online","Comisioane\nPayPal","Comisioane\ncarte de credit","Tarife\nlivrare","Comisioane\nlivrare","Vânzare - profit/pierderi","Livrare - profit/pierderi","Total - profit/pierderi"]
["An",{"$nulls":11},{"$f":"VânzăriOctombrie[Tarife\nlivrare]-VânzăriOctombrie[Comisioane\nlivrare]","v":{"v":0,"d":"0.00 lei"}},{"$f":"VânzăriOctombrie[Vânzare - profit/pierderi]+VânzăriOctombrie[Livrare - profit/pierderi]","v":{"v":0,"d":"0.00 lei"}}]
[{"$f":"AnVânzări","v":2012},{"$nulls":11},{"$f":"VânzăriOctombrie[Tarife\nlivrare]-VânzăriOctombrie[Comisioane\nlivrare]","v":{"v":0,"d":"0.00 lei"}},{"$f":"VânzăriOctombrie[Vânzare - profit/pierderi]+VânzăriOctombrie[Livrare - profit/pierderi]","v":{"v":0,"d":"0.00 lei"}}]
[{"$nulls":12},{"$f":"VânzăriOctombrie[Tarife\nlivrare]-VânzăriOctombrie[Comisioane\nlivrare]","v":{"v":0,"d":"0.00 lei"}},{"$f":"VânzăriOctombrie[Vânzare - profit/pierderi]+VânzăriOctombrie[Livrare - profit/pierderi]","v":{"v":0,"d":"0.00 lei"}}]
["Total Profit/pierderi",{"$nulls":11},{"$f":"VânzăriOctombrie[Tarife\nlivrare]-VânzăriOctombrie[Comisioane\nlivrare]","v":{"v":0,"d":"0.00 lei"}},{"$f":"VânzăriOctombrie[Vânzare - profit/pierderi]+VânzăriOctombrie[Livrare - profit/pierderi]","v":{"v":0,"d":"0.00 lei"}}]
[{"$f":"VânzăriOctombrie[[#Totals],[Total - profit/pierderi]]","v":{"v":0,"d":"0.00 lei"}},{"$nulls":11},{"$f":"VânzăriOctombrie[Tarife\nlivrare]-VânzăriOctombrie[Comisioane\nlivrare]","v":{"v":0,"d":"0.00 lei"}},{"$f":"VânzăriOctombrie[Vânzare - profit/pierderi]+VânzăriOctombrie[Livrare - profit/pierderi]","v":{"v":0,"d":"0.00 lei"}}]
[null,null,"Total",{"$f":"\"Articole vândute: \"&SUBTOTAL(103,VânzăriOctombrie[Descriere\nelement])","v":"Articole vândute: 0"},{"$f":"SUBTOTAL(109,VânzăriOctombrie[Preţ de achiziţie])","v":{"v":0,"d":"0.00 lei"}},{"$f":"SUBTOTAL(109,VânzăriOctombrie[Preţ de vânzare])","v":{"v":0,"d":"0.00 lei"}},{"$f":"SUBTOTAL(109,VânzăriOctombrie[Comisioane online])","v":{"v":0,"d":"0.00 lei"}},{"$f":"SUBTOTAL(109,VânzăriOctombrie[Comisioane\nPayPal])","v":{"v":0,"d":"0.00 lei"}},{"$f":"SUBTOTAL(109,VânzăriOctombrie[Comisioane\ncarte de credit])","v":{"v":0,"d":"0.00 lei"}},{"$f":"SUBTOTAL(109,VânzăriOctombrie[Tarife\nlivrare])","v":{"v":0,"d":"0.00 lei"}},{"$f":"SUBTOTAL(109,VânzăriOctombrie[Comisioane\nlivrare])","v":{"v":0,"d":"0.00 lei"}},{"$f":"SUBTOTAL(109,VânzăriOctombrie[Vânzare - profit/pierderi])","v":{"v":0,"d":"0.00 lei"}},{"$f":"SUBTOTAL(109,VânzăriOctombrie[Livrare - profit/pierderi])","v":{"v":0,"d":"0.00 lei"}},{"$f":"SUBTOTAL(109,VânzăriOctombrie[Total - profit/pierderi])","v":{"v":0,"d":"0.00 lei"}}]
["Tendinţă Profit/Pierdere"]

{"sheet":"Noiembrie","index":10,"n_rows":9,"n_cols":14,"rows_kept":9,"merged":[[3,0,4,0],[6,0,7,0]]}
["NOIEMBRIE"]
["Vânzări online",null,"ID\nlicitaţie","Descriere\nelement","Preţ de achiziţie","Preţ de vânzare","Comisioane online","Comisioane\nPayPal","Comisioane\ncarte de credit","Tarife\nlivrare","Comisioane\nlivrare","Vânzare - profit/pierderi","Livrare - profit/pierderi","Total - profit/pierderi"]
["An",{"$nulls":11},{"$f":"VânzăriNoiembrie[Tarife\nlivrare]-VânzăriNoiembrie[Comisioane\nlivrare]","v":{"v":0,"d":"0.00 lei"}},{"$f":"VânzăriNoiembrie[Vânzare - profit/pierderi]+VânzăriNoiembrie[Livrare - profit/pierderi]","v":{"v":0,"d":"0.00 lei"}}]
[{"$f":"AnVânzări","v":2012},{"$nulls":11},{"$f":"VânzăriNoiembrie[Tarife\nlivrare]-VânzăriNoiembrie[Comisioane\nlivrare]","v":{"v":0,"d":"0.00 lei"}},{"$f":"VânzăriNoiembrie[Vânzare - profit/pierderi]+VânzăriNoiembrie[Livrare - profit/pierderi]","v":{"v":0,"d":"0.00 lei"}}]
[{"$nulls":12},{"$f":"VânzăriNoiembrie[Tarife\nlivrare]-VânzăriNoiembrie[Comisioane\nlivrare]","v":{"v":0,"d":"0.00 lei"}},{"$f":"VânzăriNoiembrie[Vânzare - profit/pierderi]+VânzăriNoiembrie[Livrare - profit/pierderi]","v":{"v":0,"d":"0.00 lei"}}]
["Total Profit/pierderi",{"$nulls":11},{"$f":"VânzăriNoiembrie[Tarife\nlivrare]-VânzăriNoiembrie[Comisioane\nlivrare]","v":{"v":0,"d":"0.00 lei"}},{"$f":"VânzăriNoiembrie[Vânzare - profit/pierderi]+VânzăriNoiembrie[Livrare - profit/pierderi]","v":{"v":0,"d":"0.00 lei"}}]
[{"$f":"VânzăriNoiembrie[[#Totals],[Total - profit/pierderi]]","v":{"v":0,"d":"0.00 lei"}},{"$nulls":11},{"$f":"VânzăriNoiembrie[Tarife\nlivrare]-VânzăriNoiembrie[Comisioane\nlivrare]","v":{"v":0,"d":"0.00 lei"}},{"$f":"VânzăriNoiembrie[Vânzare - profit/pierderi]+VânzăriNoiembrie[Livrare - profit/pierderi]","v":{"v":0,"d":"0.00 lei"}}]
[null,null,"Total",{"$f":"\"Articole vândute: \"&SUBTOTAL(103,VânzăriNoiembrie[Descriere\nelement])","v":"Articole vândute: 0"},{"$f":"SUBTOTAL(109,VânzăriNoiembrie[Preţ de achiziţie])","v":{"v":0,"d":"0.00 lei"}},{"$f":"SUBTOTAL(109,VânzăriNoiembrie[Preţ de vânzare])","v":{"v":0,"d":"0.00 lei"}},{"$f":"SUBTOTAL(109,VânzăriNoiembrie[Comisioane online])","v":{"v":0,"d":"0.00 lei"}},{"$f":"SUBTOTAL(109,VânzăriNoiembrie[Comisioane\nPayPal])","v":{"v":0,"d":"0.00 lei"}},{"$f":"SUBTOTAL(109,VânzăriNoiembrie[Comisioane\ncarte de credit])","v":{"v":0,"d":"0.00 lei"}},{"$f":"SUBTOTAL(109,VânzăriNoiembrie[Tarife\nlivrare])","v":{"v":0,"d":"0.00 lei"}},{"$f":"SUBTOTAL(109,VânzăriNoiembrie[Comisioane\nlivrare])","v":{"v":0,"d":"0.00 lei"}},{"$f":"SUBTOTAL(109,VânzăriNoiembrie[Vânzare - profit/pierderi])","v":{"v":0,"d":"0.00 lei"}},{"$f":"SUBTOTAL(109,VânzăriNoiembrie[Livrare - profit/pierderi])","v":{"v":0,"d":"0.00 lei"}},{"$f":"SUBTOTAL(109,VânzăriNoiembrie[Total - profit/pierderi])","v":{"v":0,"d":"0.00 lei"}}]
["Tendinţă Profit/Pierdere"]

{"sheet":"Decembrie","index":11,"n_rows":9,"n_cols":14,"rows_kept":9,"merged":[[3,0,4,0],[6,0,7,0]]}
["DECEMBRIE"]
["Vânzări online",null,"ID\nlicitaţie","Descriere\nelement","Preţ de achiziţie","Preţ de vânzare","Comisioane online","Comisioane\nPayPal","Comisioane\ncarte de credit","Tarife\nlivrare","Comisioane\nlivrare","Vânzare - profit/pierderi","Livrare - profit/pierderi","Total - profit/pierderi"]
["An",{"$nulls":11},{"$f":"VânzăriDecembrie[Tarife\nlivrare]-VânzăriDecembrie[Comisioane\nlivrare]","v":{"v":0,"d":"0.00 lei"}},{"$f":"VânzăriDecembrie[Vânzare - profit/pierderi]+VânzăriDecembrie[Livrare - profit/pierderi]","v":{"v":0,"d":"0.00 lei"}}]
[{"$f":"AnVânzări","v":2012},{"$nulls":11},{"$f":"VânzăriDecembrie[Tarife\nlivrare]-VânzăriDecembrie[Comisioane\nlivrare]","v":{"v":0,"d":"0.00 lei"}},{"$f":"VânzăriDecembrie[Vânzare - profit/pierderi]+VânzăriDecembrie[Livrare - profit/pierderi]","v":{"v":0,"d":"0.00 lei"}}]
[{"$nulls":12},{"$f":"VânzăriDecembrie[Tarife\nlivrare]-VânzăriDecembrie[Comisioane\nlivrare]","v":{"v":0,"d":"0.00 lei"}},{"$f":"VânzăriDecembrie[Vânzare - profit/pierderi]+VânzăriDecembrie[Livrare - profit/pierderi]","v":{"v":0,"d":"0.00 lei"}}]
["Total Profit/pierderi",{"$nulls":11},{"$f":"VânzăriDecembrie[Tarife\nlivrare]-VânzăriDecembrie[Comisioane\nlivrare]","v":{"v":0,"d":"0.00 lei"}},{"$f":"VânzăriDecembrie[Vânzare - profit/pierderi]+VânzăriDecembrie[Livrare - profit/pierderi]","v":{"v":0,"d":"0.00 lei"}}]
[{"$f":"VânzăriDecembrie[[#Totals],[Total - profit/pierderi]]","v":{"v":0,"d":"0.00 lei"}},{"$nulls":11},{"$f":"VânzăriDecembrie[Tarife\nlivrare]-VânzăriDecembrie[Comisioane\nlivrare]","v":{"v":0,"d":"0.00 lei"}},{"$f":"VânzăriDecembrie[Vânzare - profit/pierderi]+VânzăriDecembrie[Livrare - profit/pierderi]","v":{"v":0,"d":"0.00 lei"}}]
[null,null,"Total",{"$f":"\"Articole vândute: \"&SUBTOTAL(103,VânzăriDecembrie[Descriere\nelement])","v":"Articole vândute: 0"},{"$f":"SUBTOTAL(109,VânzăriDecembrie[Preţ de achiziţie])","v":{"v":0,"d":"0.00 lei"}},{"$f":"SUBTOTAL(109,VânzăriDecembrie[Preţ de vânzare])","v":{"v":0,"d":"0.00 lei"}},{"$f":"SUBTOTAL(109,VânzăriDecembrie[Comisioane online])","v":{"v":0,"d":"0.00 lei"}},{"$f":"SUBTOTAL(109,VânzăriDecembrie[Comisioane\nPayPal])","v":{"v":0,"d":"0.00 lei"}},{"$f":"SUBTOTAL(109,VânzăriDecembrie[Comisioane\ncarte de credit])","v":{"v":0,"d":"0.00 lei"}},{"$f":"SUBTOTAL(109,VânzăriDecembrie[Tarife\nlivrare])","v":{"v":0,"d":"0.00 lei"}},{"$f":"SUBTOTAL(109,VânzăriDecembrie[Comisioane\nlivrare])","v":{"v":0,"d":"0.00 lei"}},{"$f":"SUBTOTAL(109,VânzăriDecembrie[Vânzare - profit/pierderi])","v":{"v":0,"d":"0.00 lei"}},{"$f":"SUBTOTAL(109,VânzăriDecembrie[Livrare - profit/pierderi])","v":{"v":0,"d":"0.00 lei"}},{"$f":"SUBTOTAL(109,VânzăriDecembrie[Total - profit/pierderi])","v":{"v":0,"d":"0.00 lei"}}]
["Tendinţă Profit/Pierdere"]

{"sheet":"Anul curent - Rezumat","index":12,"n_rows":16,"n_cols":11,"rows_kept":16,"merged":[[3,0,4,0],[6,0,7,0]]}
["Anul curent"]
["Rezumat",null,"Profit/Pierderi",{"$nulls":4},"Anul curent - Profit/Pierderi"]
["An",{"$nulls":6},"Lună","Vânzări - profit/pierderi","Livrare - profit/pierderi","Total - profit/pierderi"]
[{"$f":"AnVânzări","v":2012},{"$nulls":6},"Ianuarie",{"$f":"VânzăriIanuarie[[#Totals],[Vânzare - profit/pierderi]]","v":{"v":79.5,"d":"79.50 lei"}},{"$f":"VânzăriIanuarie[[#Totals],[Livrare - profit/pierderi]]","v":{"v":9.5,"d":"9.50 lei"}},{"$f":"IF(AND(RezumatAnCurent[[#This Row],[Vânzări - profit/pierderi]]<>\"\",RezumatAnCurent[[#This Row],[Livrare - profit/pierderi]]<>\"\"),RezumatAnCurent[[#This Row],[Vânzări - profit/pierderi]]+RezumatAnCurent[[#This Row],[Livrare - profit/pierderi]],\"\")","v":{"v":89,"d":"89.00 lei"}}]
[{"$nulls":7},"Februarie",{"$f":"VânzăriFebruarie[[#Totals],[Vânzare - profit/pierderi]]","v":{"v":212.3,"d":"212.30 lei"}},{"$f":"VânzăriFebruarie[[#Totals],[Livrare - profit/pierderi]]","v":{"v":12.3,"d":"12.30 lei"}},{"$f":"IF(AND(RezumatAnCurent[[#This Row],[Vânzări - profit/pierderi]]<>\"\",RezumatAnCurent[[#This Row],[Livrare - profit/pierderi]]<>\"\"),RezumatAnCurent[[#This Row],[Vânzări - profit/pierderi]]+RezumatAnCurent[[#This Row],[Livrare - profit/pierderi]],\"\")","v":{"v":224.60000000000002,"d":"224.60 lei"}}]
["Tendinţă lunară vânzări:",{"$nulls":6},"Martie",{"$f":"VânzăriMartie[[#Totals],[Vânzare - profit/pierderi]]","v":{"v":0,"d":"0.00 lei"}},{"$f":"VânzăriMartie[[#Totals],[Livrare - profit/pierderi]]","v":{"v":0,"d":"0.00 lei"}},{"$f":"IF(AND(RezumatAnCurent[[#This Row],[Vânzări - profit/pierderi]]<>\"\",RezumatAnCurent[[#This Row],[Livrare - profit/pierderi]]<>\"\"),RezumatAnCurent[[#This Row],[Vânzări - profit/pierderi]]+RezumatAnCurent[[#This Row],[Livrare - profit/pierderi]],\"\")","v":{"v":0,"d":"0.00 lei"}}]
[{"$nulls":7},"Aprilie",{"$f":"VânzăriAprilie[[#Totals],[Vânzare - profit/pierderi]]","v":{"v":0,"d":"0.00 lei"}},{"$f":"VânzăriAprilie[[#Totals],[Livrare - profit/pierderi]]","v":{"v":0,"d":"0.00 lei"}},{"$f":"IF(AND(RezumatAnCurent[[#This Row],[Vânzări - profit/pierderi]]<>\"\",RezumatAnCurent[[#This Row],[Livrare - profit/pierderi]]<>\"\"),RezumatAnCurent[[#This Row],[Vânzări - profit/pierderi]]+RezumatAnCurent[[#This Row],[Livrare - profit/pierderi]],\"\")","v":{"v":0,"d":"0.00 lei"}}]
[{"$nulls":7},"Mai",{"$f":"VânzăriMai[[#Totals],[Vânzare - profit/pierderi]]","v":{"v":0,"d":"0.00 lei"}},{"$f":"VânzăriMai[[#Totals],[Livrare - profit/pierderi]]","v":{"v":0,"d":"0.00 lei"}},{"$f":"IF(AND(RezumatAnCurent[[#This Row],[Vânzări - profit/pierderi]]<>\"\",RezumatAnCurent[[#This Row],[Livrare - profit/pierderi]]<>\"\"),RezumatAnCurent[[#This Row],[Vânzări - profit/pierderi]]+RezumatAnCurent[[#This Row],[Livrare - profit/pierderi]],\"\")","v":{"v":0,"d":"0.00 lei"}}]
[{"$nulls":7},"Iunie",{"$f":"VânzăriIunie[[#Totals],[Vânzare - profit/pierderi]]","v":{"v":0,"d":"0.00 lei"}},{"$f":"VânzăriIunie[[#Totals],[Livrare - profit/pierderi]]","v":{"v":0,"d":"0.00 lei"}},{"$f":"IF(AND(RezumatAnCurent[[#This Row],[Vânzări - profit/pierderi]]<>\"\",RezumatAnCurent[[#This Row],[Livrare - profit/pierderi]]<>\"\"),RezumatAnCurent[[#This Row],[Vânzări - profit/pierderi]]+RezumatAnCurent[[#This Row],[Livrare - profit/pierderi]],\"\")","v":{"v":0,"d":"0.00 lei"}}]
[{"$nulls":7},"Iulie",{"$f":"VânzăriIulie[[#Totals],[Vânzare - profit/pierderi]]","v":{"v":0,"d":"0.00 lei"}},{"$f":"VânzăriIulie[[#Totals],[Livrare - profit/pierderi]]","v":{"v":0,"d":"0.00 lei"}},{"$f":"IF(AND(RezumatAnCurent[[#This Row],[Vânzări - profit/pierderi]]<>\"\",RezumatAnCurent[[#This Row],[Livrare - profit/pierderi]]<>\"\"),RezumatAnCurent[[#This Row],[Vânzări - profit/pierderi]]+RezumatAnCurent[[#This Row],[Livrare - profit/pierderi]],\"\")","v":{"v":0,"d":"0.00 lei"}}]
[{"$nulls":7},"August",{"$f":"VânzăriAugust[[#Totals],[Vânzare - profit/pierderi]]","v":{"v":0,"d":"0.00 lei"}},{"$f":"VânzăriAugust[[#Totals],[Livrare - profit/pierderi]]","v":{"v":0,"d":"0.00 lei"}},{"$f":"IF(AND(RezumatAnCurent[[#This Row],[Vânzări - profit/pierderi]]<>\"\",RezumatAnCurent[[#This Row],[Livrare - profit/pierderi]]<>\"\"),RezumatAnCurent[[#This Row],[Vânzări - profit/pierderi]]+RezumatAnCurent[[#This Row],[Livrare - profit/pierderi]],\"\")","v":{"v":0,"d":"0.00 lei"}}]
[{"$nulls":7},"Septembrie",{"$f":"VânzăriSeptembrie[[#Totals],[Vânzare - profit/pierderi]]","v":{"v":0,"d":"0.00 lei"}},{"$f":"VânzăriSeptembrie[[#Totals],[Livrare - profit/pierderi]]","v":{"v":0,"d":"0.00 lei"}},{"$f":"IF(AND(RezumatAnCurent[[#This Row],[Vânzări - profit/pierderi]]<>\"\",RezumatAnCurent[[#This Row],[Livrare - profit/pierderi]]<>\"\"),RezumatAnCurent[[#This Row],[Vânzări - profit/pierderi]]+RezumatAnCurent[[#This Row],[Livrare - profit/pierderi]],\"\")","v":{"v":0,"d":"0.00 lei"}}]
[{"$nulls":7},"Octombrie",{"$f":"VânzăriOctombrie[[#Totals],[Vânzare - profit/pierderi]]","v":{"v":0,"d":"0.00 lei"}},{"$f":"VânzăriOctombrie[[#Totals],[Livrare - profit/pierderi]]","v":{"v":0,"d":"0.00 lei"}},{"$f":"IF(AND(RezumatAnCurent[[#This Row],[Vânzări - profit/pierderi]]<>\"\",RezumatAnCurent[[#This Row],[Livrare - profit/pierderi]]<>\"\"),RezumatAnCurent[[#This Row],[Vânzări - profit/pierderi]]+RezumatAnCurent[[#This Row],[Livrare - profit/pierderi]],\"\")","v":{"v":0,"d":"0.00 lei"}}]
[{"$nulls":7},"Noiembrie",{"$f":"VânzăriNoiembrie[[#Totals],[Vânzare - profit/pierderi]]","v":{"v":0,"d":"0.00 lei"}},{"$f":"VânzăriNoiembrie[[#Totals],[Livrare - profit/pierderi]]","v":{"v":0,"d":"0.00 lei"}},{"$f":"IF(AND(RezumatAnCurent[[#This Row],[Vânzări - profit/pierderi]]<>\"\",RezumatAnCurent[[#This Row],[Livrare - profit/pierderi]]<>\"\"),RezumatAnCurent[[#This Row],[Vânzări - profit/pierderi]]+RezumatAnCurent[[#This Row],[Livrare - profit/pierderi]],\"\")","v":{"v":0,"d":"0.00 lei"}}]
[{"$nulls":7},"Decembrie",{"$f":"VânzăriDecembrie[[#Totals],[Vânzare - profit/pierderi]]","v":{"v":0,"d":"0.00 lei"}},{"$f":"VânzăriDecembrie[[#Totals],[Livrare - profit/pierderi]]","v":{"v":0,"d":"0.00 lei"}},{"$f":"IF(AND(RezumatAnCurent[[#This Row],[Vânzări - profit/pierderi]]<>\"\",RezumatAnCurent[[#This Row],[Livrare - profit/pierderi]]<>\"\"),RezumatAnCurent[[#This Row],[Vânzări - profit/pierderi]]+RezumatAnCurent[[#This Row],[Livrare - profit/pierderi]],\"\")","v":{"v":0,"d":"0.00 lei"}}]
[{"$nulls":7},"Total",{"$f":"SUBTOTAL(109,RezumatAnCurent[Vânzări - profit/pierderi])","v":{"v":291.8,"d":"291.80 lei"}},{"$f":"SUBTOTAL(109,RezumatAnCurent[Livrare - profit/pierderi])","v":{"v":21.8,"d":"21.80 lei"}},{"$f":"SUBTOTAL(109,RezumatAnCurent[Total - profit/pierderi])","v":{"v":313.6,"d":"313.60 lei"}}]